bitfinex/quotes_ETHUSD_20250611
["timestamp","ask_amount","ask_price","bid_price","bid_amount"]
[1749650010350,1.4376,2797.7,2797.1,1.4192]
[1749650010550,1.4376,2797.7,2797.0,1.218]
[1749650010882,0.1784,2797.4,2797.0,1.218]
[1749650011085,0.1784,2797.4,2797.0,11.218]
[1749650011294,0.1784,2797.6,2797.2,10.0]
[1749650011594,0.1784,2798.0,2797.6,10.0]
[1749650011788,0.1784,2798.0,2797.5,10.1784]
[1749650012549,0.1784,2798.0,2797.5,0.1784]
[1749650013387,0.1784,2798.0,2797.6,0.00159431]
[1749650013719,1.3482,2798.5,2797.9,20.28866928]
[1749650013987,1.3482,2798.5,2797.9,10.1784]
[1749650013988,1.5266,2798.5,2797.9,10.1784]
[1749650014191,1.5266,2798.5,2797.7,0.54178909]
[1749650014192,0.1784,2798.2,2797.7,0.54178909]
[1749650014354,0.1784,2798.2,2797.7,1.3964]
[1749650014983,10.32866928,2798.9,2797.6,0.00159431]
[1749650014984,1.4256,2798.1,2797.6,0.00159431]
[1749650015187,1.4256,2797.6,2797.0,5.13313114]
[1749650015372,0.1784,2797.3,2797.1,10.0]
[1749650015780,0.1784,2797.3,2797.0,0.1784]
[1749650016198,0.1784,2797.3,2797.0,10.1784]
[1749650016398,0.1784,2797.3,2797.0,0.1784]
[1749650016984,0.1784,2797.3,2796.8,1.218]
[1749650017174,1.4126,2797.2,2796.1,9.78909812]
[1749650017415,10.28866928,2797.4,2796.1,6.21273114]
[1749650017605,0.1784,2796.5,2796.1,1.258]
[1749650017806,1.4126,2797.4,2796.3,10.0]
[1749650018113,0.1784,2796.7,2796.3,0.44755807]
[1749650018278,0.1784,2796.7,2796.3,10.0]
[1749650018476,1.6696,2796.7,2796.3,10.0]
[1749650019416,1.6696,2796.7,2796.2,10.1784]
[1749650019646,1.488,2797.1,2796.5,10.0]
[1749650019823,0.1784,2796.9,2796.5,10.0]
[1749650019984,1.488,2797.1,2796.3,1.218]
[1749650020183,0.1784,2796.7,2796.3,1.218]
[1749650020488,0.1784,2796.7,2796.4,8.08954626]
[1749650020688,1.488,2797.1,2796.5,10.0]
[1749650020925,1.488,2797.1,2796.2,0.3637986]
[1749650020926,0.1784,2796.7,2796.2,10.5421986]
[1749650021130,0.1784,2796.7,2796.3,1.218]
[1749650021644,0.1784,2796.7,2796.4,0.0028952]
[1749650022802,1.488,2797.1,2796.5,10.0]
[1749650023008,0.1784,2796.9,2796.5,10.0]
[1749650025048,1.488,2797.1,2796.3,11.218]
[1749650025254,0.1784,2796.7,2796.3,11.218]
[1749650025552,0.1784,2796.7,2796.3,1.218]
[1749650025748,0.1784,2796.7,2796.3,4.79403204]
[1749650026052,0.1784,2796.9,2796.5,10.0]
[1749650026255,1.488,2797.1,2796.3,1.66555807]
[1749650026256,1.488,2797.1,2796.6,0.44755807]
[1749650026411,1.488,2797.1,2796.4,0.00159496]
[1749650026613,0.1784,2796.7,2796.4,0.00159496]
[1749650027571,0.35280469,2798.0,2796.4,0.00159496]
[1749650027572,1.4928,2796.6,2796.4,0.00159496]
[1749650029054,10.0,2797.2,2796.1,0.04]
[1749650029055,1.4719,2796.3,2796.1,0.04]
[1749650032163,10.0,2797.6,2796.1,0.04]
[1749650032164,1.4613,2796.6,2796.1,0.04]
[1749650032311,0.1784,2796.3,2796.1,10.04]
[1749650032733,0.1784,2796.5,2796.1,10.48755807]
[1749650032942,0.1784,2796.5,2796.3,0.08940385]
[1749650037360,1.4033,2796.4,2796.3,0.08940385]
[1749650041458,1.93747,2796.4,2796.3,0.08940385]
[1749650041665,1.4033,2796.4,2796.3,0.08940385]
[1749650044450,1.3086,2796.9,2796.3,0.08940385]
[1749650044970,1.3453,2796.7,2796.3,0.08940385]
[1749650045174,0.55,2796.8,2796.1,0.04]
[1749650045175,0.55,2796.3,2796.1,0.04]
[1749650045326,12.27109469,2796.2,2796.1,0.04]
[1749650045528,7.33450947,2796.2,2796.1,0.04]
[1749650047860,17.33450947,2796.2,2796.1,0.04]
[1749650048276,17.33450947,2796.2,2795.1,0.04]
[1749650048277,10.55,2796.1,2795.1,0.04]
[1749650048435,1.418,2795.4,2795.1,0.04]
[1749650048635,0.55,2795.5,2795.1,0.04]
[1749650048636,1.418,2795.2,2795.1,0.04]
[1749650049339,5.498,2795.2,2795.1,0.04]
[1749650049679,1.418,2795.2,2795.1,0.04]
[1749650051650,4.08,2795.4,2795.1,0.04]
[1749650051846,5.5225,2795.6,2795.1,0.04]
[1749650052070,0.55225,2795.5,2795.1,0.04]
[1749650052254,4.63225,2795.5,2795.1,0.04]
[1749650052665,1.4361,2795.4,2795.1,0.04]
[1749650052862,0.55,2795.3,2795.1,0.04]
[1749650053052,1.8638,2795.2,2795.1,0.04]
[1749650053250,2.86015858,2795.2,2795.1,0.04]
[1749650053790,6.93915858,2795.2,2795.1,0.04]
[1749650054151,2.31015858,2795.2,2795.1,0.04]
[1749650054491,0.36087205,2796.1,2795.1,0.04]
[1749650054689,1.4018,2796.0,2795.1,0.04]
[1749650055049,0.1784,2795.2,2795.1,0.04]
[1749650055898,5.6199,2795.2,2795.1,0.04]
[1749650056363,6.1699,2795.2,2795.1,0.04]
[1749650056570,14.88667575,2795.2,2795.1,0.04]
[1749650056790,1.8517,2795.1,2793.6,1.372]
[1749650056953,1.3017,2795.0,2793.6,1.372]
[1749650057375,1.3017,2795.0,2793.6,11.372]
[1749650058177,1.3017,2795.0,2793.6,1.372]
[1749650058519,0.55,2794.8,2793.6,1.372]
[1749650058671,1.3223,2794.7,2793.6,1.372]
[1749650058870,4.26523,2794.6,2793.6,1.372]
[1749650059071,0.18723,2794.6,2793.6,1.372]
[1749650059274,4.078,2794.5,2793.7,0.44755807]
[1749650060086,1.3223,2794.7,2793.7,0.44755807]
[1749650060087,5.4003,2794.7,2793.7,0.44755807]
[1749650060472,5.4003,2794.7,2793.6,1.372]
[1749650060887,1.3233,2794.5,2793.5,1.211]
[1749650061072,0.18733,2794.4,2793.5,1.211]
[1749650062091,4.077,2794.3,2793.5,1.211]
[1749650062987,0.18733,2794.4,2793.5,1.211]
[1749650063189,4.077,2794.3,2793.5,1.211]
[1749650063386,0.18733,2794.4,2793.5,1.211]
[1749650063714,4.26433,2794.4,2793.5,1.211]
[1749650064278,0.558763,2794.3,2793.5,1.211]
[1749650064615,0.558763,2794.3,2793.9,1.2709]
[1749650064828,4.26433,2794.4,2793.9,1.2709]
[1749650065206,0.18733,2794.4,2793.9,1.2709]
[1749650065409,4.26333,2794.4,2793.9,1.2709]
[1749650065735,4.26333,2794.4,2793.6,1.3687]
[1749650065944,4.26333,2794.4,2793.2,0.1784]
[1749650065945,1.3617,2794.2,2793.2,1.3687]
[1749650066532,1.3617,2794.5,2793.9,1.3687]
[1749650066742,4.076,2794.7,2793.9,1.3687]
[1749650067037,0.54282,2794.6,2793.9,1.3687]
[1749650067214,4.075,2794.5,2793.9,1.3687]
[1749650068621,1.3522,2794.8,2793.9,1.3687]
[1749650068824,4.075,2794.7,2793.9,1.3687]
[1749650069137,4.075,2794.6,2793.9,1.3687]
[1749650069336,1.211,2795.4,2793.9,1.3687]
[1749650069555,1.2707,2795.2,2793.9,11.3687]
[1749650069696,0.53457,2795.1,2793.9,1.3687]
[1749650069902,4.075,2795.1,2793.9,1.3687]
[1749650070213,1.2707,2795.2,2793.9,11.3687]
[1749650070938,4.074,2795.0,2794.1,0.04]
[1749650072033,4.074,2794.9,2794.1,0.04]
[1749650073540,4.073,2794.8,2794.2,1.2938]
[1749650073837,1.2707,2795.2,2794.2,1.2938]
[1749650073838,4.073,2795.1,2794.2,1.2938]
[1749650074941,0.55,2795.0,2794.1,0.04]
[1749650075316,0.55,2794.8,2794.1,0.04]
[1749650075519,0.32923466,2794.7,2794.1,0.04]
[1749650075848,0.55,2794.8,2794.1,0.04]
[1749650076012,1.8899,2794.5,2794.1,0.04]
[1749650076207,1.32810155,2794.7,2794.1,0.04]
[1749650076208,0.55,2794.2,2794.1,0.04]
[1749650076401,1.8991,2794.2,2794.1,0.04]
[1749650077140,2.22813649,2794.2,2794.1,0.04]
[1749650077363,10.8789798,2794.2,2793.1,0.04]
[1749650077649,1.3674,2793.6,2793.1,0.04]
[1749650077810,4.071,2793.8,2793.2,1.3057]
[1749650078207,4.071,2793.8,2793.1,0.04]
[1749650078643,1.3674,2793.9,2793.1,0.04]
[1749650078846,4.071,2793.8,2793.2,1.2951]
[1749650079030,1.2938,2793.7,2793.1,0.04]
[1749650081862,0.55,2793.9,2793.1,0.04]
[1749650082030,4.07,2793.6,2793.1,0.04]
[1749650082218,0.407,2793.5,2793.1,0.04]
[1749650082639,1.2826,2793.4,2793.1,0.04]
[1749650082921,0.55,2793.3,2793.1,0.04]
[1749650084663,0.407,2793.5,2793.1,0.04]
[1749650084821,4.069,2793.3,2793.1,0.04]
[1749650085464,4.069,2793.5,2793.1,0.04]
[1749650085953,1.2358,2793.7,2793.1,0.04]
[1749650086152,1.3079,2794.4,2793.2,1.3669]
[1749650086473,4.069,2794.3,2793.2,1.3669]
[1749650086620,0.53769,2794.2,2793.2,1.3669]
[1749650087024,4.068,2794.1,2793.2,1.3669]
[1749650087854,4.068,2794.0,2793.2,1.3669]
[1749650089744,1.2785,2793.9,2793.2,1.3669]
[1749650091105,1.8348,2794.3,2793.2,1.3669]
[1749650091279,4.25048,2794.2,2793.2,1.3669]
[1749650091683,0.18348,2794.2,2793.2,1.3669]
[1749650091976,4.066,2794.4,2793.4,1.2719]
[1749650092742,1.2926,2794.6,2793.4,1.2719]
[1749650092947,4.066,2794.5,2793.4,1.2719]
[1749650093191,0.55,2794.4,2793.4,1.2719]
[1749650093742,4.616,2794.4,2793.4,1.2719]
[1749650093983,0.4970511,2794.3,2793.4,1.2719]
[1749650095670,4.065,2794.6,2793.6,1.3281]
[1749650097681,8.09978575,2795.3,2793.6,1.3281]
[1749650097682,1.3122,2795.5,2793.6,1.3281]
[1749650097886,1.3122,2795.5,2793.5,10.0]
[1749650097887,1.204,2795.3,2793.8,1.2066]
[1749650098202,0.65763068,2795.4,2794.1,10.0]
[1749650098407,0.65763068,2795.4,2794.2,1.2066]
[1749650098555,0.19698307,2795.3,2794.2,1.2066]
[1749650098954,0.74698307,2795.3,2794.2,1.2066]
[1749650099357,0.19698307,2795.3,2794.2,1.2066]
[1749650099557,0.55,2795.2,2794.2,1.2066]
[1749650099755,4.063,2795.1,2794.2,1.2066]
[1749650100058,0.4613,2795.0,2794.2,1.2066]
[1749650100310,0.55,2794.8,2794.2,1.2066]
[1749650100605,0.55,2794.6,2793.9,1.3102]
[1749650100822,8.09978575,2794.7,2793.2,1.3102]
[1749650100823,0.55,2794.4,2793.2,1.3102]
[1749650101137,4.25006,2794.3,2793.3,1.54322]
[1749650101307,0.18806,2794.3,2793.3,1.54322]
[1749650101691,4.062,2794.4,2793.3,1.54322]
[1749650102570,1.7559,2794.8,2793.5,1.3293]
[1749650102891,4.061,2794.7,2793.5,1.3293]
[1749650104706,0.55,2794.6,2793.5,1.3293]
[1749650105060,4.06,2794.6,2793.5,1.3293]
[1749650105255,4.466,2794.6,2793.6,1.2128]
[1749650105688,1.8314,2794.5,2793.6,1.2128]
[1749650106839,0.55,2794.3,2793.6,1.2128]
[1749650107651,0.55,2793.7,2793.1,0.04]
[1749650107840,0.55,2793.5,2793.1,0.04]
[1749650108714,4.92397858,2793.6,2793.1,0.04]
[1749650108715,0.86497858,2793.6,2793.1,0.04]
[1749650108916,0.55,2793.6,2793.1,0.04]
[1749650109644,0.55,2793.9,2793.1,0.04]
[1749650109848,0.55,2793.5,2793.1,0.04]
[1749650109998,1.2543,2793.4,2793.1,0.04]
[1749650110357,1.61974945,2793.4,2793.1,0.04]
[1749650110516,0.55,2793.2,2793.1,0.04]
[1749650110902,0.55,2793.2,2792.1,0.04]
[1749650110903,11.09908575,2793.2,2792.1,0.04]
[1749650111097,0.55,2793.0,2792.2,1.291]
[1749650111809,0.55,2792.8,2792.1,0.04]
[1749650112407,0.55,2792.6,2792.1,0.04]
[1749650112620,0.4607,2792.5,2792.1,0.04]
[1749650114102,0.55,2792.4,2792.1,0.04]
[1749650115213,0.55,2792.3,2792.1,0.04]
[1749650115440,11.7803,2792.3,2792.1,0.04]
[1749650115748,12.13373,2792.2,2792.1,0.04]
[1749650115903,1.8829,2792.1,2791.1,0.04]
[1749650116107,1.8829,2791.6,2791.1,0.04]
[1749650116305,0.55,2791.4,2791.1,0.04]
[1749650116851,0.55,2791.2,2790.1,0.04]
[1749650117144,0.55,2791.0,2790.1,1.3449]
[1749650117704,0.55,2791.0,2790.2,0.44755807]
[1749650117905,0.55,2791.0,2790.1,1.3449]
[1749650118132,0.55,2790.8,2790.1,1.3449]
[1749650118545,4.057,2790.7,2790.1,1.3449]
[1749650119134,0.5834,2790.9,2790.1,1.3449]
[1749650119449,4.057,2790.8,2790.1,1.3449]
[1749650121138,0.55,2790.7,2790.1,1.3449]
[1749650123687,4.057,2790.8,2790.1,1.3449]
[1749650124476,4.047,2790.8,2790.1,1.3449]
[1749650125261,3.98884809,2790.8,2790.1,1.3449]
[1749650125774,0.55,2791.2,2790.1,1.3449]
[1749650125955,1.6416313,2791.4,2790.1,1.3449]
[1749650126305,0.55,2791.3,2790.1,1.3449]
[1749650126456,4.055,2791.2,2790.2,1.1542]
[1749650127293,0.55,2791.1,2790.2,1.1542]
[1749650127520,1.7996,2791.1,2790.2,1.1542]
[1749650127693,0.55,2791.1,2790.2,1.1542]
[1749650127878,4.055,2791.1,2790.2,1.1542]
[1749650128200,4.055,2791.9,2790.7,1.2059]
[1749650128508,0.55,2791.7,2790.7,1.2059]
[1749650129180,1.1337,2791.7,2790.7,1.2059]
[1749650129500,0.55,2791.5,2790.7,1.2059]
[1749650132825,0.4053,2792.3,2791.3,1.1972]
[1749650133323,0.55,2792.4,2791.3,1.1972]
[1749650133979,1.1311,2792.7,2791.4,10.0]
[1749650134321,0.55,2792.7,2791.5,1.1846]
[1749650134521,4.052,2792.8,2791.5,1.1846]
[1749650134890,0.55,2792.7,2791.5,1.1846]
[1749650135122,0.4602,2792.6,2791.5,1.1846]
[1749650136006,1.2319,2792.9,2791.6,1.203]
[1749650136244,0.04,2792.9,2791.8,10.0]
[1749650136385,0.04,2792.9,2791.9,1.1741]
[1749650136907,0.04,2792.9,2792.1,10.0]
[1749650137092,0.04,2792.9,2792.2,1.1741]
[1749650137482,0.55,2792.8,2792.2,1.1741]
[1749650138231,0.04,2792.9,2791.2,1.1391]
[1749650138232,0.55,2792.4,2791.2,1.1391]
[1749650138418,8.11934053,2792.2,2791.2,1.1391]
[1749650138580,8.11934053,2791.9,2791.2,1.1391]
[1749650138781,0.55,2791.8,2791.2,1.1391]
[1749650139016,1.27193405,2791.8,2791.2,1.1391]
[1749650139220,9.35244053,2792.5,2791.2,1.1391]
[1749650139221,0.55,2792.4,2791.2,1.1391]
[1749650139528,4.05,2792.1,2791.2,1.1391]
[1749650140903,0.55,2792.5,2791.2,1.1391]
[1749650141107,8.47093979,2793.5,2791.5,1.1958]
[1749650141428,4.049,2793.2,2791.8,1.1958]
[1749650141734,1.1491,2793.4,2791.8,1.1958]
[1749650142037,4.049,2793.4,2792.0,1.2484]
[1749650142332,0.55,2793.4,2792.0,1.2484]
[1749650142679,1.189,2793.6,2792.0,1.2484]
[1749650142879,1.189,2793.6,2792.3,10.0]
[1749650143082,1.189,2793.6,2792.3,11.2484]
[1749650143290,1.189,2793.6,2792.4,1.2484]
[1749650143487,0.33787653,2792.9,2792.5,1.2255]
[1749650143686,0.33787653,2792.9,2792.3,10.44755807]
[1749650143687,0.29787653,2792.8,2792.6,1.2255]
[1749650144430,0.29787653,2792.8,2792.7,1.1496]
[1749650145982,0.04,2792.9,2792.7,1.1496]
[1749650148575,0.04,2792.9,2792.8,8.11934053]
[1749650148773,0.04,2792.9,2792.8,33.72516252]
[1749650149061,0.04,2793.9,2793.4,1.2288]
[1749650149271,0.04,2793.9,2793.5,3.409551]
[1749650149420,0.04,2793.9,2793.6,1.2488]
[1749650150749,0.04,2793.9,2793.6,9.36814053]
[1749650150947,0.04,2793.9,2793.7,1.1499]
[1749650151244,0.04,2793.9,2793.8,15.415303]
[1749650151404,0.04,2793.9,2793.8,9.77030835]
[1749650151599,0.04,2793.9,2793.8,5.743396]
[1749650152019,0.04,2793.9,2793.8,1.1499]
[1749650152420,0.04,2793.9,2793.0,1.1941]
[1749650152630,0.04,2793.9,2793.2,1.1941]
[1749650155244,0.55,2793.8,2792.9,1.2152]
[1749650155558,0.04,2793.9,2792.9,1.2152]
[1749650155712,0.04,2793.9,2793.0,0.44755807]
[1749650156606,0.04,2793.9,2793.2,11.1158]
[1749650156806,0.04,2793.9,2793.3,0.44755807]
[1749650157008,0.04,2793.9,2793.2,11.1158]
[1749650158625,0.04,2793.9,2793.5,10.0]
[1749650159348,0.04,2793.9,2793.6,1.1698]
[1749650160646,0.04,2793.9,2793.2,1.2047]
[1749650161056,0.04,2793.9,2793.3,19.454423]
[1749650161266,0.04,2793.9,2793.4,4.78454319]
[1749650161418,0.04,2793.9,2793.4,1.2047]
[1749650162257,0.04,2793.9,2793.5,18.5668986]
[1749650162461,0.04,2793.9,2793.6,11.2238]
[1749650162613,0.04,2793.9,2793.6,1.2238]
[1749650163064,0.04,2793.9,2793.7,0.24048]
[1749650163242,0.04,2793.9,2793.6,1.2238]
[1749650164554,0.04,2793.9,2793.6,1.67135807]
[1749650164868,0.04,2793.9,2793.7,0.44755807]
[1749650165035,0.04,2793.9,2793.8,10.0]
[1749650165217,0.04,2793.9,2793.8,26.03120107]
[1749650165559,0.04,2793.9,2793.8,1.1471]
[1749650166331,0.04,2793.9,2793.3,1.2317]
[1749650166535,1.2715,2793.9,2793.2,1.181]
[1749650166764,1.2715,2793.9,2793.0,1.1866]
[1749650167422,0.55,2793.8,2793.0,1.38514726]
[1749650167619,0.55,2793.6,2792.5,1.1866]
[1749650168066,1.2043,2793.7,2792.6,0.44755807]
[1749650168233,1.2043,2793.7,2792.7,8.11934053]
[1749650168434,1.2043,2793.7,2792.8,10.0]
[1749650168664,0.04,2793.9,2793.0,13.58027479]
[1749650168849,0.04,2793.9,2793.1,3.58017773]
[1749650169053,0.04,2793.9,2793.3,1.2327]
[1749650170563,1.1946,2793.8,2792.9,1.1566]
[1749650170964,0.55,2793.7,2792.6,1.1566]
[1749650171267,0.55,2793.5,2792.6,1.1566]
[1749650172138,1.1946,2793.6,2792.7,0.44755807]
[1749650172338,1.1946,2793.6,2793.0,10.0]
[1749650172542,1.1981,2793.9,2793.1,0.44755807]
[1749650172739,0.55,2793.8,2792.6,1.1566]
[1749650172941,0.55,2793.6,2792.6,1.1566]
[1749650173170,0.55,2793.4,2792.3,10.0]
[1749650173371,1.1581,2793.3,2792.1,0.1823888]
[1749650173669,1.1581,2793.3,2792.1,10.0]
[1749650173858,1.1581,2793.3,2792.1,20.7748121]
[1749650174258,1.1581,2793.3,2792.1,10.44755807]
[1749650174644,1.1581,2793.3,2792.1,10.63637928]
[1749650174970,0.55,2793.0,2792.1,10.0]
[1749650175155,0.55,2793.0,2792.0,2.3362]
[1749650175340,0.55,2793.0,2792.1,0.23362]
[1749650176261,0.55,2792.8,2792.0,1.181]
[1749650176463,1.1692,2792.9,2792.0,11.62855807]
[1749650176665,1.1692,2792.9,2792.1,0.44755807]
[1749650176866,1.1692,2792.9,2792.0,11.181]
[1749650177245,1.1692,2792.9,2792.0,1.181]
[1749650177446,0.55,2792.8,2791.7,11.65125807]
[1749650177643,0.55,2792.8,2791.7,2.3847]
[1749650178144,0.55,2792.6,2791.7,1.181]
[1749650178740,0.55,2792.6,2791.7,1.62855807]
[1749650178943,0.55,2792.6,2791.8,0.44755807]
[1749650179374,1.1768,2792.7,2791.8,0.44755807]
[1749650179545,0.55,2792.7,2791.7,1.181]
[1749650179748,1.1209,2792.6,2791.7,1.181]
[1749650182058,0.55,2792.5,2791.7,1.181]
[1749650182291,0.55,2792.3,2791.7,1.181]
[1749650182497,1.1294,2792.2,2791.2,0.44755807]
[1749650182764,1.1294,2792.0,2791.2,0.35102911]
[1749650183002,1.1294,2792.0,2791.1,21.49745403]
[1749650183209,1.1497,2793.1,2791.8,10.32725403]
[1749650183392,1.1497,2793.1,2792.4,10.32725403]
[1749650183703,1.1497,2793.1,2792.5,10.0]
[1749650184063,1.1497,2793.1,2792.5,10.44755807]
[1749650184263,1.1497,2793.1,2792.5,10.0]
[1749650184465,1.1497,2793.1,2791.9,10.44755807]
[1749650184810,1.1497,2793.1,2791.9,10.0]
[1749650184811,0.55,2793.0,2791.9,10.0]
[1749650185167,1.2045,2792.9,2791.9,10.0]
[1749650186582,0.55,2792.8,2791.9,10.0]
[1749650186786,0.55,2792.6,2791.6,10.0]
[1749650187302,1.1807,2792.8,2791.3,10.32725403]
[1749650187469,1.1807,2792.8,2791.4,10.0]
[1749650187806,1.1807,2792.8,2791.7,10.0]
[1749650188011,1.1807,2792.8,2791.7,10.44755807]
[1749650188305,1.1462,2792.4,2791.7,10.0]
[1749650188697,1.1462,2792.4,2791.4,14.03]
[1749650188865,1.1462,2792.4,2791.4,10.0]
[1749650190196,1.1462,2792.4,2791.7,10.0]
[1749650190408,1.1462,2792.4,2791.8,0.44755807]
[1749650190814,1.1462,2792.4,2791.7,10.0]
[1749650192018,1.1462,2792.4,2791.3,10.32725403]
[1749650192532,1.1462,2792.4,2791.3,10.7748121]
[1749650192695,1.1462,2792.4,2791.3,10.32725403]
[1749650193097,0.55,2792.3,2791.3,10.32725403]
[1749650193305,1.1462,2792.4,2791.3,1.174]
[1749650193306,1.1064,2792.2,2791.3,1.174]
[1749650193524,1.193,2792.0,2791.2,11.174]
[1749650193726,1.193,2792.0,2791.2,10.0]
[1749650193899,1.193,2792.0,2791.1,10.7162793]
[1749650194234,1.193,2792.0,2791.4,10.32725403]
[1749650194441,1.193,2792.0,2791.5,0.44755807]
[1749650194737,1.193,2792.0,2791.5,10.44755807]
[1749650194934,1.193,2792.0,2791.6,0.00233365]
[1749650195300,1.193,2792.0,2791.8,10.0]
[1749650196020,1.193,2792.0,2791.5,10.0]
[1749650196220,1.193,2792.0,2791.2,16.414]
[1749650196421,1.193,2792.0,2791.2,10.0]
[1749650196799,1.1147,2792.3,2791.7,10.32725403]
[1749650196999,1.1147,2792.3,2791.8,10.0]
[1749650198736,1.1352,2792.5,2792.1,10.0]
[1749650199458,0.41118163,2793.4,2792.4,10.0]
[1749650199459,1.1459,2793.0,2792.4,10.0]
[1749650199999,1.1459,2793.0,2792.2,10.0]
[1749650200203,1.1459,2793.0,2792.1,10.0]
[1749650201213,1.1459,2793.0,2792.4,10.0]
[1749650202042,1.1459,2793.0,2792.1,10.0]
[1749650202726,1.1459,2793.0,2792.4,10.0]
[1749650205125,1.1459,2793.0,2792.1,10.0]
[1749650205608,1.1878,2792.8,2791.8,1.1575]
[1749650205811,1.1878,2792.8,2791.6,11.23179658]
[1749650206112,1.1878,2792.8,2791.7,10.0]
[1749650207742,1.1878,2792.8,2791.6,15.70335465]
[1749650207743,1.1878,2792.8,2792.0,10.0]
[1749650208963,1.1878,2792.8,2791.7,10.0]
[1749650209156,1.1878,2792.8,2792.0,10.0]
[1749650209473,1.1878,2792.8,2792.6,10.0]
[1749650209623,1.1878,2792.8,2792.3,10.0]
[1749650210729,1.1878,2792.8,2792.0,10.0]
[1749650211727,1.1878,2792.8,2791.8,1.174]
[1749650216764,1.1878,2792.8,2791.3,0.44755807]
[1749650216765,0.55,2792.2,2790.8,17.29459106]
[1749650216963,0.55,2792.4,2790.8,7.29459106]
[1749650216964,1.1006,2792.1,2790.8,7.29459106]
[1749650217165,1.1006,2792.3,2790.8,2.308]
[1749650217529,1.1006,2792.3,2791.1,0.04]
[1749650217730,0.55,2792.1,2791.1,0.04]
[1749650217955,1.1006,2791.9,2791.1,0.04]
[1749650218368,1.1006,2791.7,2791.1,0.04]
[1749650219373,1.1006,2791.7,2791.2,10.0]
[1749650219534,1.1006,2791.7,2791.2,10.44755807]
[1749650220382,1.1006,2791.7,2791.1,0.04]
[1749650220792,0.55,2791.4,2791.1,0.04]
[1749650220992,1.1047,2791.3,2791.1,0.04]
[1749650221281,10.60779658,2791.6,2791.1,0.04]
[1749650221481,0.55,2791.2,2791.1,0.04]
[1749650221716,1.7043,2791.2,2791.1,0.04]
[1749650222450,1.7043,2791.2,2791.1,0.04380964]
[1749650223884,1.7043,2791.2,2791.1,0.04]
[1749650224858,1.7043,2791.2,2791.1,0.04380964]
[1749650225037,2.27653,2791.2,2791.1,0.04380964]
[1749650227342,2.27653,2791.2,2790.1,0.04]
[1749650227343,1.12223,2791.2,2790.1,0.04]
[1749650227540,0.55,2790.3,2790.1,0.04]
[1749650227741,1.1231,2790.2,2790.1,0.04]
[1749650228479,4.567,2790.7,2790.1,0.04]
[1749650228635,1.5798,2790.6,2790.1,0.04]
[1749650230432,0.55,2790.5,2790.1,0.04]
[1749650230667,0.55,2790.3,2790.1,0.04]
[1749650231872,1.6711,2790.2,2790.1,0.04]
[1749650234977,1.1211,2790.2,2790.1,0.04]
[1749650235161,1.63481,2790.2,2790.1,0.04]
[1749650236284,2.18481,2790.2,2790.1,0.04]
[1749650237340,2.14251,2790.2,2790.1,0.04]
[1749650239261,12.14251,2790.2,2790.1,0.04]
[1749650239571,15.90251,2790.2,2790.1,0.04]
[1749650240040,23.67251,2790.2,2790.1,0.04]
[1749650240235,4.31,2789.6,2789.1,0.04]
[1749650240439,11.77659658,2789.2,2789.1,0.04]
[1749650240640,0.55,2789.1,2788.1,0.04]
[1749650240872,4.191,2789.5,2788.1,0.04]
[1749650240873,0.55,2788.9,2788.1,0.04]
[1749650241099,0.55,2788.7,2788.1,0.04]
[1749650241298,1.0065,2788.7,2788.1,0.04]
[1749650241437,4.015,2788.6,2788.2,0.44755807]
[1749650242089,0.55,2788.9,2788.2,0.44755807]
[1749650242251,4.014,2788.8,2788.2,0.44755807]
[1749650242657,4.014,2788.8,2788.3,10.05779658]
[1749650243007,1.1018,2789.3,2788.4,10.0]
[1749650243160,4.014,2789.2,2788.7,10.0]
[1749650243679,1.1018,2789.3,2788.5,1.0621]
[1749650243680,5.1158,2789.3,2788.5,1.0621]
[1749650244082,0.55,2789.2,2788.5,1.0621]
[1749650244298,5.1158,2789.3,2788.7,10.0]
[1749650244299,1.1018,2789.3,2788.7,10.0]
[1749650244502,5.1158,2789.3,2788.7,10.0]
[1749650244679,0.55,2789.3,2788.7,10.0]
[1749650245001,1.0555,2789.6,2788.7,10.0]
[1749650245207,1.0555,2789.6,2789.0,10.0]
[1749650245359,1.0476,2789.9,2789.3,10.0]
[1749650246187,1.0476,2789.9,2789.1,1.1208]
[1749650246496,0.55,2789.8,2789.1,1.1208]
[1749650248171,1.0476,2789.9,2789.2,10.05779658]
[1749650248401,1.0476,2789.9,2789.3,10.0]
[1749650248777,4.013,2790.3,2789.3,10.0]
[1749650249198,1.0856,2790.5,2789.2,10.0]
[1749650249499,1.0856,2790.5,2789.1,1.1208]
[1749650249500,0.55,2790.3,2789.5,10.0]
[1749650249706,4.23746,2790.4,2789.5,10.0]
[1749650249906,0.55,2790.3,2789.5,10.0]